{"text_format":"3","workbook":"xlsx","n_sheets":2,"sheets":["Seznam učitele"," Data seznamu"],"not_rendered":{"defined_names":6},"read":"whole","date_system":"1900"}

{"sheet":"Seznam učitele","index":0,"n_rows":10,"n_cols":10,"rows_kept":10,"merged":[[0,1,0,2],[0,4,0,8],[2,9,6,9]]}
[null,"Seznam učitele",null,"Data seznamu","V této buňce je legenda barev stavů: Nezahájeno: normální styl, Probíhá: R=91 G=133 B=49, Termín dnes: R=118 G=88 B=0, Pozastaveno: R=109 G=66 B=111, Dokončeno: přeškrtnutí, Zrušeno: R=191 G=191 B=191 a Po termínu: R=191 G=33 B=28."]
[null,"POLOŽKA","KATEGORIE","DATUM ZAHÁJENÍ","TERMÍN","ZBÝVAJÍCÍ DNY","STAV","POZNÁMKY"]
[null,"Vyklidit zásuvky stolu","Kabinet",{"$f":"DATE(YEAR(TODAY()),MONTH(TODAY())-1,6)","v":"2018-04-06"},{"$f":"DATE(YEAR(TODAY()),MONTH(TODAY())-1,16)","v":"2018-04-16"},{"$f":"IFERROR(IF(COUNT(Seznam[[#This Row],[DATUM ZAHÁJENÍ]]:Seznam[[#This Row],[TERMÍN]])<>2,\"\",IF(OR(Seznam[[#This Row],[STAV]]=\"Dokončeno\",Seznam[[#This Row],[STAV]]=\"Zrušeno\",Seznam[[#This Row],[STAV]]=\"Pozastaveno\"),\"\",Seznam[[#This Row],[TERMÍN]]-TODAY())),\"\")","v":""},"Dokončeno",null,null,"V této buňce je průřez stavu. Pokud chcete seznam filtrovat podle stavu, vyberte v průřezu stav. Pokud chcete vybrat více možností, podržte při výběru stisknutou klávesu CTRL."]
[null,"Objednat nálepky","Pomůcky",{"$f":"DATE(YEAR(TODAY()),MONTH(TODAY())-1,11)","v":"2018-04-11"},{"$f":"DATE(YEAR(TODAY()),MONTH(TODAY())-1,21)","v":"2018-04-21"},{"$f":"IFERROR(IF(COUNT(Seznam[[#This Row],[DATUM ZAHÁJENÍ]]:Seznam[[#This Row],[TERMÍN]])<>2,\"\",IF(OR(Seznam[[#This Row],[STAV]]=\"Dokončeno\",Seznam[[#This Row],[STAV]]=\"Zrušeno\",Seznam[[#This Row],[STAV]]=\"Pozastaveno\"),\"\",Seznam[[#This Row],[TERMÍN]]-TODAY())),\"\")","v":""},"Dokončeno"]
[null,"Vytřít a navoskovat podlahy","Jiné",{"$f":"DATE(YEAR(TODAY()),MONTH(TODAY()-1),DAY(TODAY())-25)","v":"2018-04-15"},{"$f":"DATE(YEAR(TODAY()),MONTH(TODAY())-1,26)","v":"2018-04-26"},{"$f":"IFERROR(IF(COUNT(Seznam[[#This Row],[DATUM ZAHÁJENÍ]]:Seznam[[#This Row],[TERMÍN]])<>2,\"\",IF(OR(Seznam[[#This Row],[STAV]]=\"Dokončeno\",Seznam[[#This Row],[STAV]]=\"Zrušeno\",Seznam[[#This Row],[STAV]]=\"Pozastaveno\"),\"\",Seznam[[#This Row],[TERMÍN]]-TODAY())),\"\")","v":""},"Dokončeno"]
[null,"Vytvořit štítky se jmény","Pomůcky",{"$f":"DATE(YEAR(TODAY()),MONTH(TODAY())-1,21)","v":"2018-04-21"},{"$f":"DATE(YEAR(TODAY()),MONTH(TODAY())-1,1)","v":"2018-04-01"},{"$f":"IFERROR(IF(COUNT(Seznam[[#This Row],[DATUM ZAHÁJENÍ]]:Seznam[[#This Row],[TERMÍN]])<>2,\"\",IF(OR(Seznam[[#This Row],[STAV]]=\"Dokončeno\",Seznam[[#This Row],[STAV]]=\"Zrušeno\",Seznam[[#This Row],[STAV]]=\"Pozastaveno\"),\"\",Seznam[[#This Row],[TERMÍN]]-TODAY())),\"\")","v":""},"Pozastaveno"]
[null,"Oznámkovat čtvrtletní písemné práce","Hodnocení",{"$f":"DATE(YEAR(TODAY()),MONTH(TODAY())-1,26)","v":"2018-04-26"},{"$f":"TODAY()-5","v":"2018-05-05"},{"$f":"IFERROR(IF(COUNT(Seznam[[#This Row],[DATUM ZAHÁJENÍ]]:Seznam[[#This Row],[TERMÍN]])<>2,\"\",IF(OR(Seznam[[#This Row],[STAV]]=\"Dokončeno\",Seznam[[#This Row],[STAV]]=\"Zrušeno\",Seznam[[#This Row],[STAV]]=\"Pozastaveno\"),\"\",Seznam[[#This Row],[TERMÍN]]-TODAY())),\"\")","v":-5},"Po termínu"]
[null,"E-mailové připomenutí písemného povolení od rodičů","Telefonní hovory",{"$f":"DATE(YEAR(TODAY()),MONTH(TODAY()),1)","v":"2018-05-01"},{"$f":"TODAY()","v":"2018-05-10"},{"$f":"IFERROR(IF(COUNT(Seznam[[#This Row],[DATUM ZAHÁJENÍ]]:Seznam[[#This Row],[TERMÍN]])<>2,\"\",IF(OR(Seznam[[#This Row],[STAV]]=\"Dokončeno\",Seznam[[#This Row],[STAV]]=\"Zrušeno\",Seznam[[#This Row],[STAV]]=\"Pozastaveno\"),\"\",Seznam[[#This Row],[TERMÍN]]-TODAY())),\"\")","v":""},"Zrušeno"]
[null,"Klasifikovat studenty podle ústních testů","Kabinet",{"$f":"DATE(YEAR(TODAY()),MONTH(TODAY()),7)","v":"2018-05-07"},{"$f":"DATE(YEAR(TODAY()),MONTH(TODAY()),17)","v":"2018-05-17"},{"$f":"IFERROR(IF(COUNT(Seznam[[#This Row],[DATUM ZAHÁJENÍ]]:Seznam[[#This Row],[TERMÍN]])<>2,\"\",IF(OR(Seznam[[#This Row],[STAV]]=\"Dokončeno\",Seznam[[#This Row],[STAV]]=\"Zrušeno\",Seznam[[#This Row],[STAV]]=\"Pozastaveno\"),\"\",Seznam[[#This Row],[TERMÍN]]-TODAY())),\"\")","v":7},"Probíhá"]
[null,"Ořezat tužky","Pomůcky",{"$f":"DATE(YEAR(TODAY()),MONTH(TODAY()),11)","v":"2018-05-11"},{"$f":"DATE(YEAR(TODAY()),MONTH(TODAY()),10)","v":"2018-05-10"},{"$f":"IFERROR(IF(COUNT(Seznam[[#This Row],[DATUM ZAHÁJENÍ]]:Seznam[[#This Row],[TERMÍN]])<>2,\"\",IF(OR(Seznam[[#This Row],[STAV]]=\"Dokončeno\",Seznam[[#This Row],[STAV]]=\"Zrušeno\",Seznam[[#This Row],[STAV]]=\"Pozastaveno\"),\"\",Seznam[[#This Row],[TERMÍN]]-TODAY())),\"\")","v":0},"Probíhá"]

{"sheet":" Data seznamu","index":1,"n_rows":13,"n_cols":3,"rows_kept":13}
[null,"Data seznamu","Seznam učitele"]
[null,"Kategorie"]
[null,"Kabinet"]
[null,"Pomůcky"]
[null,"Co se má koupit"]
[null,"Telefonní hovory"]
[null,"Nové nápady"]
[null,"Hodnocení"]
[null,"Tým"]
[null,"Školení intervence"]
[null,"Počítač"]
[null,"Osobní"]
[null,"Jiné"]